[Event "*** Titled Tuesday Blitz"]
[Site "Chess.com"]
[Date "2021.04.06"]
[Round "6"]
[White "SargissyanSargis"]
[Black "Brave_spirit12"]
[Result "0-1"]
[WhiteElo "2381"]
[BlackElo "2565"]
[TimeControl "180+1"]
[EndTime "11:07:34 PDT"]
[Termination "Brave_spirit12 won on time"]

1. e4 {[%clk 0:03:00.9]} 1... e6 {[%clk 0:02:59.2]} 2. d4 {[%clk 0:03:00.4]}
2... d5 {[%clk 0:02:58.8]} 3. Nc3 {[%clk 0:02:59.9]} 3... Nf6 {[%clk 0:02:57.9]}
4. Bg5 {[%clk 0:02:58.8]} 4... Be7 {[%clk 0:02:53.6]} 5. e5 {[%clk 0:01:11.6]}
5... Nfd7 {[%clk 0:02:11.3]} 6. Bxe7 {[%clk 0:01:11]} 6... Qxe7 {[%clk
0:02:11.6]} 7. f4 {[%clk 0:01:11]} 7... a6 {[%clk 0:02:08.7]} 8. Nf3 {[%clk
0:01:10.7]} 8... c5 {[%clk 0:01:52.7]} 9. Qd2 {[%clk 0:01:11.2]} 9... Nc6 {[%clk
0:01:51.7]} 10. dxc5 {[%clk 0:01:11.5]} 10... Nxc5 {[%clk 0:01:50.7]} 11. Bd3
{[%clk 0:01:06.8]} 11... O-O {[%clk 0:01:49.1]} 12. O-O {[%clk 0:01:05.4]} 12...
Rd8 {[%clk 0:01:47.9]} 13. Ne2 {[%clk 0:01:02.3]} 13... Ne4 {[%clk 0:01:46.1]}
14. Qe3 {[%clk 0:01:02.7]} 14... Qc5 {[%clk 0:01:42.6]} 15. Qxc5 {[%clk
0:01:00.6]} 15... Nxc5 {[%clk 0:01:43.5]} 16. Ned4 {[%clk 0:01:01.1]} 16... Bd7
{[%clk 0:01:41.7]} 17. Nxc6 {[%clk 0:00:55]} 17... bxc6 {[%clk 0:01:40.3]} 18.
b4 {[%clk 0:00:45.4]} 18... Na4 {[%clk 0:01:38.1]} 19. Nd4 {[%clk 0:00:17.2]}
19... c5 {[%clk 0:01:32.3]} 20. bxc5 {[%clk 0:00:15.6]} 20... Nxc5 {[%clk
0:01:33.2]} 21. Rab1 {[%clk 0:00:14.5]} 21... Rdb8 {[%clk 0:01:26.5]} 22. Kf2
{[%clk 0:00:13.8]} 22... Na4 {[%clk 0:01:20.1]} 23. Ke3 {[%clk 0:00:13.7]} 23...
Nc3 {[%clk 0:01:19.5]} 24. Rb3 {[%clk 0:00:13.3]} 24... Nb5 {[%clk 0:01:07.8]}
25. Nxb5 {[%clk 0:00:10.4]} 25... axb5 {[%clk 0:01:08.7]} 26. Rfb1 {[%clk
0:00:09.3]} 26... Rxa2 {[%clk 0:01:07.1]} 27. Bxb5 {[%clk 0:00:09.5]} 27... Bxb5
{[%clk 0:01:04.6]} 28. Rxb5 {[%clk 0:00:09.5]} 28... Rxb5 {[%clk 0:01:04.6]} 29.
Rxb5 {[%clk 0:00:09.2]} 29... g6 {[%clk 0:01:04.9]} 30. Rb8+ {[%clk 0:00:09]}
30... Kg7 {[%clk 0:01:04.4]} 31. Kd3 {[%clk 0:00:09.3]} 31... Ra3+ {[%clk
0:01:03.8]} 32. c3 {[%clk 0:00:09.3]} 32... Ra2 {[%clk 0:01:04.4]} 33. g4 {[%clk
0:00:07.3]} 33... Rxh2 {[%clk 0:01:04.1]} 34. g5 {[%clk 0:00:08]} 34... Rh3+
{[%clk 0:01:03.5]} 35. Kd2 {[%clk 0:00:08.1]} 35... Rf3 {[%clk 0:01:03.9]} 36.
Rb4 {[%clk 0:00:07.4]} 36... h5 {[%clk 0:01:04.2]} 37. gxh6+ {[%clk 0:00:06.9]}
37... Kxh6 {[%clk 0:01:05.1]} 38. Ke2 {[%clk 0:00:07.2]} 38... Rxc3 {[%clk
0:01:05]} 0-1

[Event "*** Titled Tuesday Blitz"]
[Site "Chess.com"]
[Date "2021.04.06"]
[Round "6"]
[White "shaheus"]
[Black "Chamal_Gedgafov"]
[Result "1-0"]
[WhiteElo "2380"]
[BlackElo "2203"]
[TimeControl "180+1"]
[EndTime "11:07:35 PDT"]
[Termination "shaheus won by resignation"]

1. e4 {[%clk 0:03:00.9]} 1... e6 {[%clk 0:02:58.3]} 2. Nf3 {[%clk 0:03:00.9]}
2... d5 {[%clk 0:02:57.8]} 3. Nc3 {[%clk 0:03:01.2]} 3... d4 {[%clk 0:02:56.9]}
4. Ne2 {[%clk 0:03:00.9]} 4... c5 {[%clk 0:02:57.8]} 5. c3 {[%clk 0:03:00.9]}
5... Nc6 {[%clk 0:02:57.7]} 6. cxd4 {[%clk 0:03:01]} 6... cxd4 {[%clk
0:02:58.2]} 7. Qa4 {[%clk 0:03:00.8]} 7... Bd7 {[%clk 0:02:49.4]} 8. Nexd4
{[%clk 0:02:58.9]} 8... Nxd4 {[%clk 0:02:50.3]} 9. Qxd4 {[%clk 0:02:58.5]} 9...
Qc7 {[%clk 0:02:46.9]} 10. Be2 {[%clk 0:02:47.9]} 10... Nf6 {[%clk 0:02:41.5]}
11. b4 {[%clk 0:02:21.3]} 11... Bc6 {[%clk 0:02:34.6]} 12. O-O {[%clk
0:02:08.3]} 12... Nxe4 {[%clk 0:02:26.1]} 13. b5 {[%clk 0:01:56.7]} 13... Bd5
{[%clk 0:02:25.6]} 14. Bb2 {[%clk 0:01:34.8]} 14... b6 {[%clk 0:02:20.3]} 15.
Rac1 {[%clk 0:01:31]} 15... Qb7 {[%clk 0:02:18.3]} 16. d3 {[%clk 0:01:27.1]}
16... Nf6 {[%clk 0:02:17.3]} 17. Qf4 {[%clk 0:01:12.1]} 17... Be7 {[%clk
0:02:00.5]} 18. Rc7 {[%clk 0:01:05.4]} 18... Qb8 {[%clk 0:02:00.4]} 19. Rfc1
{[%clk 0:00:50]} 19... Qd8 {[%clk 0:01:58.6]} 20. Ne5 {[%clk 0:00:38.1]} 20...
O-O {[%clk 0:01:47.1]} 21. Nc6 {[%clk 0:00:30.8]} 21... Bxc6 {[%clk 0:01:44]}
22. R7xc6 {[%clk 0:00:28.6]} 22... Nd5 {[%clk 0:01:36.4]} 23. Qg3 {[%clk
0:00:28.2]} 23... Bf6 {[%clk 0:01:34.6]} 24. Be5 {[%clk 0:00:20.5]} 24... Bxe5
{[%clk 0:01:25]} 25. Qxe5 {[%clk 0:00:20]} 25... Qd7 {[%clk 0:01:25.1]} 26. Bf3
{[%clk 0:00:17.8]} 26... Rfd8 {[%clk 0:01:16.3]} 27. h3 {[%clk 0:00:17.3]} 27...
Rac8 {[%clk 0:01:11.2]} 28. Be4 {[%clk 0:00:16.2]} 28... Rxc6 {[%clk 0:01:07.2]}
29. bxc6 {[%clk 0:00:15.7]} 29... Qe7 {[%clk 0:01:04.4]} 30. Bxd5 {[%clk
0:00:12.6]} 30... Rxd5 {[%clk 0:00:53.8]} 31. Qb8+ {[%clk 0:00:12.1]} 31... Rd8
{[%clk 0:00:50.4]} 32. c7 {[%clk 0:00:12.3]} 1-0

[Event "*** Titled Tuesday Blitz"]
[Site "Chess.com"]
[Date "2021.04.06"]
[Round "6"]
[White "KroshkaKami"]
[Black "monikarozman"]
[Result "1-0"]
[WhiteElo "2388"]
[BlackElo "2202"]
[TimeControl "180+1"]
[EndTime "11:07:37 PDT"]
[Termination "KroshkaKami won on time"]

1. e4 {[%clk 0:03:00.9]} 1... c5 {[%clk 0:02:59.2]} 2. Nf3 {[%clk 0:02:56]} 2...
Nc6 {[%clk 0:02:59]} 3. d4 {[%clk 0:02:51.6]} 3... cxd4 {[%clk 0:02:58.6]} 4.
Nxd4 {[%clk 0:02:50.1]} 4... Nf6 {[%clk 0:02:58.2]} 5. Nc3 {[%clk 0:02:45.3]}
5... e5 {[%clk 0:02:57.7]} 6. Ndb5 {[%clk 0:02:43.6]} 6... d6 {[%clk 0:02:57.5]}
7. Bg5 {[%clk 0:02:40.8]} 7... a6 {[%clk 0:02:56.9]} 8. Na3 {[%clk 0:02:39.4]}
8... b5 {[%clk 0:02:56.8]} 9. Nab1 {[%clk 0:02:35.4]} 9... Be7 {[%clk
0:02:46.7]} 10. Bxf6 {[%clk 0:02:28.8]} 10... Bxf6 {[%clk 0:02:46.3]} 11. a4
{[%clk 0:02:26.9]} 11... b4 {[%clk 0:02:36.2]} 12. Nd5 {[%clk 0:02:25.3]} 12...
O-O {[%clk 0:02:25]} 13. c3 {[%clk 0:02:22]} 13... Rb8 {[%clk 0:02:20.8]} 14.
Bc4 {[%clk 0:02:17.3]} 14... Be6 {[%clk 0:01:54.2]} 15. Qe2 {[%clk 0:02:12.1]}
15... bxc3 {[%clk 0:01:48.6]} 16. bxc3 {[%clk 0:02:07.4]} 16... a5 {[%clk
0:01:48.3]} 17. O-O {[%clk 0:02:02.5]} 17... Rb7 {[%clk 0:01:41.7]} 18. Na3
{[%clk 0:01:51.9]} 18... Bg5 {[%clk 0:01:26.6]} 19. Nb5 {[%clk 0:01:46.2]} 19...
g6 {[%clk 0:01:20.3]} 20. Rad1 {[%clk 0:01:38.8]} 20... Rd7 {[%clk 0:01:04.3]}
21. Rd3 {[%clk 0:01:32.7]} 21... Kh8 {[%clk 0:01:00]} 22. Rfd1 {[%clk
0:01:30.5]} 22... Bxd5 {[%clk 0:00:20.1]} 23. Rxd5 {[%clk 0:01:24]} 23... Be7
{[%clk 0:00:17.6]} 24. Qd2 {[%clk 0:01:16.8]} 24... f5 {[%clk 0:00:16.5]} 25.
Nxd6 {[%clk 0:00:52.5]} 25... Bxd6 {[%clk 0:00:03.7]} 26. Rxd6 {[%clk
0:00:53.4]} 26... Rxd6 {[%clk 0:00:03.4]} 27. Qxd6 {[%clk 0:00:53.4]} 27... Qc8
{[%clk 0:00:03.1]} 28. Bb5 {[%clk 0:00:48.9]} 28... Nb8 {[%clk 0:00:02]} 29.
Qxe5+ {[%clk 0:00:47]} 29... Kg8 {[%clk 0:00:01.1]} 30. Rd4 {[%clk 0:00:40.7]}
1-0

[Event "*** Titled Tuesday Blitz"]
[Site "Chess.com"]
[Date "2021.04.06"]
[Round "6"]
[White "Jumbo"]
[Black "Airquake"]
[Result "1-0"]
[WhiteElo "2835"]
[BlackElo "2668"]
[TimeControl "180+1"]
[EndTime "11:07:40 PDT"]
[Termination "Jumbo won on time"]

1. d4 {[%clk 0:03:00.9]} 1... Nf6 {[%clk 0:02:56.2]} 2. c4 {[%clk 0:03:01.3]}
2... e6 {[%clk 0:02:53.1]} 3. Nf3 {[%clk 0:03:01.6]} 3... b6 {[%clk 0:02:47.1]}
4. g3 {[%clk 0:02:59.6]} 4... Bb7 {[%clk 0:02:47.6]} 5. Bg2 {[%clk 0:02:54.7]}
5... Be7 {[%clk 0:02:26.5]} 6. Nc3 {[%clk 0:02:54.1]} 6... O-O {[%clk
0:02:25.7]} 7. d5 {[%clk 0:02:41.7]} 7... exd5 {[%clk 0:02:26.6]} 8. cxd5 {[%clk
0:02:41.6]} 8... Re8 {[%clk 0:02:21.5]} 9. O-O {[%clk 0:02:41]} 9... Bf8 {[%clk
0:02:21.1]} 10. Nd4 {[%clk 0:02:33.5]} 10... Na6 {[%clk 0:02:17.5]} 11. e4
{[%clk 0:02:22.5]} 11... d6 {[%clk 0:01:58.2]} 12. Re1 {[%clk 0:02:20.1]} 12...
Nc5 {[%clk 0:01:56.2]} 13. b4 {[%clk 0:02:11.1]} 13... Ncd7 {[%clk 0:01:55.5]}
14. h3 {[%clk 0:02:00.8]} 14... a5 {[%clk 0:01:55.3]} 15. Ba3 {[%clk 0:01:53.6]}
15... axb4 {[%clk 0:01:54.7]} 16. Bxb4 {[%clk 0:01:54.5]} 16... Nc5 {[%clk
0:01:53.3]} 17. a4 {[%clk 0:01:54.6]} 17... g6 {[%clk 0:01:45.9]} 18. Qc2 {[%clk
0:01:49]} 18... Bg7 {[%clk 0:01:45]} 19. Ncb5 {[%clk 0:01:49.1]} 19... Qd7
{[%clk 0:01:32.3]} 20. a5 {[%clk 0:01:43.2]} 20... Ba6 {[%clk 0:01:00.7]} 21.
axb6 {[%clk 0:01:13.7]} 21... Bxb5 {[%clk 0:00:56.4]} 22. Rxa8 {[%clk
0:01:11.7]} 22... Rxa8 {[%clk 0:00:55.8]} 23. Bxc5 {[%clk 0:01:04.3]} 23... dxc5
{[%clk 0:00:53.9]} 24. Qxc5 {[%clk 0:01:04.2]} 24... Ba6 {[%clk 0:00:37.4]} 25.
bxc7 {[%clk 0:00:59.7]} 25... Ne8 {[%clk 0:00:37.3]} 26. e5 {[%clk 0:00:50.4]}
26... Bb7 {[%clk 0:00:17.2]} 27. d6 {[%clk 0:00:44.1]} 27... Bxg2 {[%clk
0:00:17.4]} 28. Kxg2 {[%clk 0:00:45]} 28... Rc8 {[%clk 0:00:12.6]} 29. Qc6
{[%clk 0:00:41.9]} 29... Qxc6+ {[%clk 0:00:01.1]} 30. Nxc6 {[%clk 0:00:42.8]}
30... Nxc7 {[%clk 0:00:01.3]} 31. Ne7+ {[%clk 0:00:37.1]} 1-0

[Event "*** Titled Tuesday Blitz"]
[Site "Chess.com"]
[Date "2021.04.06"]
[Round "6"]
[White "mary-sanna"]
[Black "Chessbard1972"]
[Result "0-1"]
[WhiteElo "2112"]
[BlackElo "2331"]
[TimeControl "180+1"]
[EndTime "11:07:40 PDT"]
[Termination "Chessbard1972 won by checkmate"]

1. d4 {[%clk 0:03:00.9]} 1... Nf6 {[%clk 0:02:57.7]} 2. Bf4 {[%clk 0:03:00.6]}
2... d5 {[%clk 0:02:55.2]} 3. e3 {[%clk 0:02:57.8]} 3... Bf5 {[%clk 0:02:53.6]}
4. c4 {[%clk 0:02:53.2]} 4... e6 {[%clk 0:02:52.5]} 5. Nf3 {[%clk 0:02:45.7]}
5... Nc6 {[%clk 0:02:48.1]} 6. c5 {[%clk 0:02:32.7]} 6... Nh5 {[%clk 0:02:37.8]}
7. Nc3 {[%clk 0:02:05.8]} 7... Nxf4 {[%clk 0:02:34.5]} 8. exf4 {[%clk 0:02:06]}
8... a6 {[%clk 0:02:33.3]} 9. a3 {[%clk 0:02:05.5]} 9... Be7 {[%clk 0:02:30]}
10. Bd3 {[%clk 0:02:04.8]} 10... Bxd3 {[%clk 0:02:26.5]} 11. Qxd3 {[%clk
0:02:04.7]} 11... g6 {[%clk 0:02:26.3]} 12. Ne5 {[%clk 0:02:02.2]} 12... Nb8
{[%clk 0:02:16.8]} 13. b4 {[%clk 0:01:57.1]} 13... f6 {[%clk 0:02:13.5]} 14. Nf3
{[%clk 0:01:51.5]} 14... c6 {[%clk 0:02:12.3]} 15. Qe2 {[%clk 0:01:45.8]} 15...
Kf7 {[%clk 0:02:08.4]} 16. O-O {[%clk 0:01:41.5]} 16... Re8 {[%clk 0:02:07.5]}
17. Rfe1 {[%clk 0:01:40.8]} 17... Bf8 {[%clk 0:02:07.6]} 18. Na4 {[%clk
0:01:36.2]} 18... Nd7 {[%clk 0:02:06.6]} 19. h3 {[%clk 0:01:29.3]} 19... Bg7
{[%clk 0:02:03.9]} 20. Nc3 {[%clk 0:01:16.3]} 20... Kg8 {[%clk 0:02:01.1]} 21.
a4 {[%clk 0:01:14.8]} 21... e5 {[%clk 0:01:58.9]} 22. fxe5 {[%clk 0:01:14.2]}
22... fxe5 {[%clk 0:01:58.8]} 23. Nxe5 {[%clk 0:01:12.6]} 23... Nxe5 {[%clk
0:01:58.4]} 24. dxe5 {[%clk 0:01:12.3]} 24... Rxe5 {[%clk 0:01:57.6]} 25. Qd3
{[%clk 0:01:02.6]} 25... Qe7 {[%clk 0:01:50.3]} 26. Rec1 {[%clk 0:00:50.6]}
26... Rf8 {[%clk 0:01:45.7]} 27. Ra2 {[%clk 0:00:49.3]} 27... Re1+ {[%clk
0:01:42.8]} 28. Rxe1 {[%clk 0:00:48.3]} 28... Qxe1+ {[%clk 0:01:42.6]} 29. Kh2
{[%clk 0:00:43.2]} 29... Qxc3 {[%clk 0:01:41.9]} 30. Qb1 {[%clk 0:00:37]} 30...
Qe5+ {[%clk 0:01:39.7]} 31. g3 {[%clk 0:00:36.2]} 31... Qd4 {[%clk 0:01:37.9]}
32. f4 {[%clk 0:00:29]} 32... Re8 {[%clk 0:01:35.3]} 33. b5 {[%clk 0:00:19.8]}
33... axb5 {[%clk 0:01:18.1]} 34. axb5 {[%clk 0:00:20.7]} 34... cxb5 {[%clk
0:01:17.2]} 35. Qxb5 {[%clk 0:00:20]} 35... Qe4 {[%clk 0:01:16.5]} 36. Qxb7
{[%clk 0:00:17.7]} 36... Bd4 {[%clk 0:01:15]} 37. c6 {[%clk 0:00:14]} 37... Qe1
{[%clk 0:01:12.5]} 38. Rg2 {[%clk 0:00:13.1]} 38... Re2 {[%clk 0:00:56.1]} 39.
Qc8+ {[%clk 0:00:06.4]} 39... Kg7 {[%clk 0:00:54.9]} 40. Qd7+ {[%clk 0:00:06.8]}
40... Kh6 {[%clk 0:00:54.8]} 41. Qxd5 {[%clk 0:00:07.1]} 41... Qg1# {[%clk
0:00:52.7]} 0-1

[Event "*** Titled Tuesday Blitz"]
[Site "Chess.com"]
[Date "2021.04.06"]
[Round "6"]
[White "Bodnar_Mykola"]
[Black "Alexander_Moskalenko"]
[Result "0-1"]
[WhiteElo "2508"]
[BlackElo "2749"]
[TimeControl "180+1"]
[EndTime "11:07:43 PDT"]
[Termination "Alexander_Moskalenko won by resignation"]

1. d4 {[%clk 0:03:00.9]} 1... d5 {[%clk 0:02:58.1]} 2. c4 {[%clk 0:03:01.1]}
2... c6 {[%clk 0:02:55.1]} 3. Nf3 {[%clk 0:03:01.3]} 3... Nf6 {[%clk 0:02:55.5]}
4. Nc3 {[%clk 0:03:01.6]} 4... dxc4 {[%clk 0:02:55.7]} 5. e4 {[%clk 0:03:02.1]}
5... b5 {[%clk 0:02:55.7]} 6. Be2 {[%clk 0:03:02.6]} 6... Bg4 {[%clk 0:02:55.8]}
7. h3 {[%clk 0:02:53.8]} 7... Bh5 {[%clk 0:02:55.5]} 8. e5 {[%clk 0:02:50.1]}
8... Nd5 {[%clk 0:02:55.4]} 9. e6 {[%clk 0:02:50.4]} 9... Nxc3 {[%clk
0:02:15.2]} 10. bxc3 {[%clk 0:02:50]} 10... f6 {[%clk 0:02:15.7]} 11. Nh4 {[%clk
0:01:52.4]} 11... Bxe2 {[%clk 0:02:13.9]} 12. Qxe2 {[%clk 0:01:53.3]} 12... Qd5
{[%clk 0:02:11.9]} 13. f4 {[%clk 0:01:50.1]} 13... g6 {[%clk 0:02:07.1]} 14. f5
{[%clk 0:01:48.3]} 14... g5 {[%clk 0:02:03.7]} 15. Qh5+ {[%clk 0:01:38.3]} 15...
Kd8 {[%clk 0:02:03.8]} 16. Ng6 {[%clk 0:01:38.6]} 16... Qxg2 {[%clk 0:01:53.7]}
17. Rf1 {[%clk 0:01:21.4]} 17... Qe4+ {[%clk 0:01:54.1]} 18. Kd1 {[%clk
0:00:44.9]} 18... Qd3+ {[%clk 0:01:53.4]} 19. Ke1 {[%clk 0:00:45.2]} 19... Qxc3+
{[%clk 0:01:53.4]} 20. Ke2 {[%clk 0:00:45.3]} 20... Qd3+ {[%clk 0:01:44.7]} 21.
Ke1 {[%clk 0:00:44.7]} 21... Qe4+ {[%clk 0:01:38.8]} 22. Kd2 {[%clk 0:00:43.4]}
22... Qxd4+ {[%clk 0:01:39.4]} 23. Ke2 {[%clk 0:00:43.5]} 23... Qd3+ {[%clk
0:01:34.3]} 24. Ke1 {[%clk 0:00:43.4]} 24... Rg8 {[%clk 0:01:35]} 25. Qxh7
{[%clk 0:00:41.3]} 25... Qe4+ {[%clk 0:01:33.9]} 26. Kd1 {[%clk 0:00:35.3]}
26... Na6 {[%clk 0:01:26]} 27. Bd2 {[%clk 0:00:12.1]} 27... c3 {[%clk
0:01:08.7]} 28. Bxc3 {[%clk 0:00:10.4]} 28... Qd3+ {[%clk 0:01:09.2]} 29. Bd2
{[%clk 0:00:10.2]} 29... Qxf1+ {[%clk 0:01:09.6]} 30. Kc2 {[%clk 0:00:09.7]}
30... Qxa1 {[%clk 0:01:08.8]} 31. Qxg8 {[%clk 0:00:09.9]} 31... Qxa2+ {[%clk
0:01:09.2]} 32. Kd1 {[%clk 0:00:09.7]} 32... Qb1+ {[%clk 0:01:07.9]} 33. Ke2
{[%clk 0:00:09.8]} 33... Qe4+ {[%clk 0:01:07.4]} 34. Kd1 {[%clk 0:00:09.5]}
34... Kc7 {[%clk 0:01:07.9]} 35. Qf7 {[%clk 0:00:06.7]} 35... Rd8 {[%clk
0:00:49.4]} 36. Nxe7 {[%clk 0:00:03.8]} 36... Rxd2+ {[%clk 0:00:48.7]} 37. Kxd2
{[%clk 0:00:03.7]} 37... Qb4+ {[%clk 0:00:49.3]} 38. Ke2 {[%clk 0:00:03.8]}
38... Qxe7 {[%clk 0:00:50.2]} 0-1

[Event "*** Titled Tuesday Blitz"]
[Site "Chess.com"]
[Date "2021.04.06"]
[Round "6"]
[White "vugarrasulov"]
[Black "Kostya_Nikologorskiy"]
[Result "1-0"]
[WhiteElo "2872"]
[BlackElo "2678"]
[TimeControl "180+1"]
[EndTime "11:07:44 PDT"]
[Termination "vugarrasulov won by resignation"]

1. d4 {[%clk 0:03:00.9]} 1... d5 {[%clk 0:02:57.3]} 2. c4 {[%clk 0:03:01.3]}
2... dxc4 {[%clk 0:02:57.7]} 3. Nf3 {[%clk 0:03:01.3]} 3... c5 {[%clk
0:02:57.5]} 4. d5 {[%clk 0:03:00.3]} 4... Nf6 {[%clk 0:02:53.5]} 5. Nc3 {[%clk
0:03:00.3]} 5... e6 {[%clk 0:02:54.3]} 6. e4 {[%clk 0:02:59.9]} 6... Be7 {[%clk
0:02:42.4]} 7. Bxc4 {[%clk 0:02:57.7]} 7... exd5 {[%clk 0:02:41.2]} 8. Nxd5
{[%clk 0:02:57.1]} 8... O-O {[%clk 0:02:36.7]} 9. O-O {[%clk 0:02:55.9]} 9...
Nxd5 {[%clk 0:02:10.8]} 10. Bxd5 {[%clk 0:02:56.8]} 10... Qb6 {[%clk 0:02:02.7]}
11. Qb3 {[%clk 0:02:29.6]} 11... Nc6 {[%clk 0:01:58.8]} 12. h3 {[%clk
0:02:22.6]} 12... Qxb3 {[%clk 0:01:41.9]} 13. Bxb3 {[%clk 0:02:23.5]} 13... Nb4
{[%clk 0:01:42.5]} 14. Bd2 {[%clk 0:02:19]} 14... Bd7 {[%clk 0:01:31.3]} 15. Ne5
{[%clk 0:02:16.2]} 15... Bb5 {[%clk 0:01:30.8]} 16. Rfd1 {[%clk 0:02:12.4]}
16... Nc6 {[%clk 0:01:25.4]} 17. Bc3 {[%clk 0:01:56.9]} 17... Nxe5 {[%clk
0:01:24.4]} 18. Bxe5 {[%clk 0:01:57.8]} 18... Rfd8 {[%clk 0:01:25]} 19. Bd5
{[%clk 0:01:56.5]} 19... Ba6 {[%clk 0:01:14.3]} 20. Rd2 {[%clk 0:01:57]} 20...
Kf8 {[%clk 0:01:03.6]} 21. Rad1 {[%clk 0:01:56.1]} 21... Rd7 {[%clk 0:01:03.9]}
22. Bb3 {[%clk 0:01:40.5]} 22... Rxd2 {[%clk 0:01:01]} 23. Rxd2 {[%clk
0:01:41.4]} 23... Rd8 {[%clk 0:01:01.5]} 24. Rxd8+ {[%clk 0:01:41.8]} 24... Bxd8
{[%clk 0:01:02]} 25. Bd5 {[%clk 0:01:42.4]} 25... f6 {[%clk 0:00:59.6]} 26. Bd6+
{[%clk 0:01:39.3]} 26... Be7 {[%clk 0:00:59.7]} 27. Bb8 {[%clk 0:01:39.9]} 27...
Ke8 {[%clk 0:00:51.3]} 28. Bxa7 {[%clk 0:01:39.5]} 28... Bd6 {[%clk 0:00:51.7]}
29. Bb6 {[%clk 0:01:36.4]} 29... Kd7 {[%clk 0:00:50.5]} 30. b3 {[%clk 0:01:33]}
30... Bd3 {[%clk 0:00:45.6]} 31. a4 {[%clk 0:01:32.6]} 31... Bc2 {[%clk
0:00:42.9]} 32. a5 {[%clk 0:01:32.3]} 32... Bc7 {[%clk 0:00:37.1]} 33. g3 {[%clk
0:01:25.4]} 33... Kc8 {[%clk 0:00:33.6]} 34. f4 {[%clk 0:01:23.4]} 34... g5
{[%clk 0:00:32.8]} 35. Kf2 {[%clk 0:01:19.4]} 35... gxf4 {[%clk 0:00:32.6]} 36.
Bxc7 {[%clk 0:01:19.9]} 36... Kxc7 {[%clk 0:00:33.1]} 37. gxf4 {[%clk
0:01:20.5]} 37... b5 {[%clk 0:00:28.4]} 38. e5 {[%clk 0:01:14.6]} 38... fxe5
{[%clk 0:00:27.4]} 39. fxe5 {[%clk 0:01:15.5]} 39... Bf5 {[%clk 0:00:28]} 40. h4
{[%clk 0:01:14.8]} 40... h6 {[%clk 0:00:22.6]} 41. Ke3 {[%clk 0:01:15.1]} 41...
Kb8 {[%clk 0:00:19.1]} 42. e6 {[%clk 0:01:14.1]} 42... Ka7 {[%clk 0:00:18.6]}
43. Kf4 {[%clk 0:01:11]} 43... Bg6 {[%clk 0:00:17.4]} 44. Ke5 {[%clk 0:01:06]}
44... Ka6 {[%clk 0:00:17.5]} 45. Kd6 {[%clk 0:01:06.6]} 45... Kxa5 {[%clk
0:00:17.4]} 46. Kxc5 {[%clk 0:01:07]} 46... b4 {[%clk 0:00:17.6]} 47. Bc6 {[%clk
0:01:06.3]} 1-0

[Event "*** Titled Tuesday Blitz"]
[Site "Chess.com"]
[Date "2021.04.06"]
[Round "6"]
[White "CzechmVIII"]
[Black "retropwr"]
[Result "0-1"]
[WhiteElo "2209"]
[BlackElo "2413"]
[TimeControl "180+1"]
[EndTime "11:07:44 PDT"]
[Termination "retropwr won by checkmate"]

1. e4 {[%clk 0:03:00.9]} 1... d6 {[%clk 0:03:00.3]} 2. d4 {[%clk 0:03:00.2]}
2... Nf6 {[%clk 0:03:00.6]} 3. Nc3 {[%clk 0:03:00.7]} 3... e5 {[%clk 0:02:59.4]}
4. Nge2 {[%clk 0:03:00]} 4... exd4 {[%clk 0:02:59]} 5. Nxd4 {[%clk 0:02:59.3]}
5... Be7 {[%clk 0:02:59.9]} 6. g3 {[%clk 0:02:58.6]} 6... O-O {[%clk 0:02:59]}
7. Bg2 {[%clk 0:02:58.9]} 7... Re8 {[%clk 0:02:57.7]} 8. O-O {[%clk 0:02:58.5]}
8... Bf8 {[%clk 0:02:57.9]} 9. Re1 {[%clk 0:02:57.5]} 9... Nbd7 {[%clk
0:02:57.1]} 10. h3 {[%clk 0:02:53.1]} 10... c6 {[%clk 0:02:54.1]} 11. Bf4 {[%clk
0:02:43.3]} 11... Ne5 {[%clk 0:02:41.6]} 12. b3 {[%clk 0:02:35.2]} 12... a5
{[%clk 0:02:35.1]} 13. a4 {[%clk 0:02:34.4]} 13... Qb6 {[%clk 0:02:18]} 14. Be3
{[%clk 0:02:22]} 14... Qc7 {[%clk 0:02:15.1]} 15. f4 {[%clk 0:02:16.9]} 15...
Ned7 {[%clk 0:02:14.9]} 16. Bf2 {[%clk 0:02:14.1]} 16... Nc5 {[%clk 0:02:04.9]}
17. g4 {[%clk 0:02:07.6]} 17... h6 {[%clk 0:02:04]} 18. Qd2 {[%clk 0:01:57.3]}
18... g6 {[%clk 0:01:54.5]} 19. Rad1 {[%clk 0:01:52.8]} 19... Bd7 {[%clk
0:01:47.2]} 20. Qe2 {[%clk 0:01:18.9]} 20... Rad8 {[%clk 0:01:37.6]} 21. Qf3
{[%clk 0:01:13.2]} 21... Bc8 {[%clk 0:01:22.4]} 22. Qg3 {[%clk 0:00:57.2]} 22...
Bg7 {[%clk 0:01:20.4]} 23. Kh1 {[%clk 0:00:40.9]} 23... b6 {[%clk 0:01:07.4]}
24. Bf3 {[%clk 0:00:26.6]} 24... Bb7 {[%clk 0:01:07]} 25. h4 {[%clk 0:00:25.1]}
25... d5 {[%clk 0:00:55.1]} 26. e5 {[%clk 0:00:22.4]} 26... Nfe4 {[%clk
0:00:54.2]} 27. Nxe4 {[%clk 0:00:20.6]} 27... Nxe4 {[%clk 0:00:52.6]} 28. Bxe4
{[%clk 0:00:17.6]} 28... dxe4 {[%clk 0:00:52.8]} 29. e6 {[%clk 0:00:13.8]} 29...
e3 {[%clk 0:00:48.4]} 30. Bxe3 {[%clk 0:00:11.7]} 30... c5+ {[%clk 0:00:47.9]}
31. Kg1 {[%clk 0:00:09.7]} 31... cxd4 {[%clk 0:00:47.9]} 32. exf7+ {[%clk
0:00:09.7]} 32... Qxf7 {[%clk 0:00:47]} 33. Bf2 {[%clk 0:00:08]} 33... Qd5
{[%clk 0:00:45.8]} 34. Kh2 {[%clk 0:00:08.2]} 34... Rxe1 {[%clk 0:00:36.2]} 35.
Rxe1 {[%clk 0:00:08.1]} 35... Rc8 {[%clk 0:00:35.8]} 36. h5 {[%clk 0:00:07.2]}
36... Rc3 {[%clk 0:00:31.4]} 37. Qh4 {[%clk 0:00:06.4]} 37... Qg2# {[%clk
0:00:30.7]} 0-1